fUSD/lending_fUSD_20260602
["ID","MTS","AMOUNT","RATE_DAILY","PERIOD"]
[423749774,1780383040000,-150.0,0.00013806,2]
[423749767,1780383040000,-551.45,0.00013732,2]
[423749765,1780383040000,-500.0,0.00013732,2]
[423749766,1780383040000,-500.0,0.00013732,2]
[423749764,1780383040000,-15.63725158,0.00013732,2]
[423749779,1780383040000,-166.66,0.00013836,2]
[423749775,1780383040000,-5501.91936977,0.00013821,2]
[423749780,1780383040000,-150.0,0.00013851,2]
[423749778,1780383040000,-13617.40055236,0.00013823,2]
[423749782,1780383040000,-150.0,0.00013862,2]
[423749781,1780383040000,-5986.23714462,0.00013856,2]
[423749796,1780383040000,-151.0,0.00013957,2]
[423749797,1780383040000,-575.1,0.00013962,2]
[423749794,1780383040000,-150.0,0.00013942,2]
[423749791,1780383040000,-500.0,0.00013912,2]
[423749789,1780383040000,-500.0,0.00013912,2]
[423749798,1780383040000,-184.98,0.00013962,2]
[423749793,1780383040000,-2512.45974365,0.00013925,2]
[423749792,1780383040000,-150.0,0.00013916,2]
[423749788,1780383040000,-277.08187633,0.00013912,2]
[423749787,1780383040000,-150.0,0.00013896,2]
[423749786,1780383040000,-1603.05,0.00013889,2]
[423749784,1780383040000,-2000.0,0.00013889,2]
[423749785,1780383040000,-2000.0,0.00013889,2]
[423749776,1780383040000,-699.60198728,0.00013821,2]
[423749783,1780383040000,-2000.0,0.00013889,2]
[423749790,1780383040000,-500.0,0.00013912,2]
[423749812,1780383041000,-572.84,0.00013972,2]
[423749823,1780383041000,-451.12582537,0.00013973,2]
[423749822,1780383041000,-1000.0,0.00013973,2]
[423749827,1780383041000,-184.98,0.00013973,2]
[423749833,1780383041000,-572.84,0.00013981,2]
[423749830,1780383041000,-235.267,0.00013976,2]
[423749835,1780383041000,-481.99,0.00013981,2]
[423749825,1780383041000,-572.84,0.00013973,2]
[423749828,1780383041000,-6201.52135705,0.00013975,2]
[423749824,1780383041000,-291.00348234,0.00013973,2]
[423749829,1780383041000,-2510.91,0.00013976,2]
[423749832,1780383041000,-481.99,0.0001398,2]
[423749826,1780383041000,-184.98,0.00013973,2]
[423749811,1780383041000,-482.0,0.00013969,2]
[423749836,1780383041000,-482.02,0.00013981,2]
[423749831,1780383041000,-395.95,0.00013978,2]
[423749815,1780383041000,-643.75,0.00013972,2]
[423749819,1780383041000,-1000.0,0.00013973,2]
[423749810,1780383041000,-572.84,0.00013969,2]
[423749834,1780383041000,-643.75,0.00013981,2]
[423749807,1780383041000,-395.95,0.00013968,2]
[423749799,1780383041000,-184.98,0.00013962,2]
[423749800,1780383041000,-395.95,0.00013962,2]
[423749801,1780383041000,-572.84,0.00013962,2]
[423749804,1780383041000,-643.79,0.00013962,2]
[423749803,1780383041000,-575.1,0.00013962,2]
[423749814,1780383041000,-184.98,0.00013972,2]
[423749806,1780383041000,-481.99,0.00013968,2]
[423749805,1780383041000,-184.98,0.00013966,2]
[423749817,1780383041000,-184.98,0.00013972,2]
[423749818,1780383041000,-166.66,0.00013973,2]
[423749820,1780383041000,-1000.0,0.00013973,2]
[423749821,1780383041000,-1000.0,0.00013973,2]
[423749816,1780383041000,-482.02,0.00013972,2]
[423749808,1780383041000,-185.0,0.00013968,2]
[423749802,1780383041000,-575.1,0.00013962,2]
[423749844,1780383041000,-150.0,0.00014033,2]
[423749851,1780383041000,-2000.0,0.0001411,2]
[423749839,1780383041000,-201.56,0.00013983,2]
[423749863,1780383041000,-150.0,0.00014237,2]
[423749865,1780383041000,-350.0,0.00014247,3]
[423749862,1780383041000,-150.0,0.00014237,2]
[423749861,1780383041000,-150.0,0.00014214,2]
[423749864,1780383041000,-166.66,0.00014247,2]
[423749866,1780383041000,-500.0,0.00014249,2]
[423749871,1780383041000,-513.4,0.00014249,2]
[423749859,1780383041000,-302.12,0.000142,2]
[423749867,1780383041000,-500.0,0.00014249,2]
[423749873,1780383041000,-200.0,0.0001425,2]
[423749875,1780383041000,-2000.0,0.0001425,2]
[423749868,1780383041000,-500.0,0.00014249,2]
[423749874,1780383041000,-2000.0,0.0001425,2]
[423749876,1780383041000,-431.39417164,0.0001425,2]
[423749869,1780383041000,-551.45,0.00014249,2]
[423749872,1780383041000,-245.61060131,0.0001425,2]
[423749870,1780383041000,-500.0,0.00014249,2]
[423749841,1780383041000,-150.0,0.00013987,2]
[423749860,1780383041000,-2511.0,0.000142,2]
[423749857,1780383041000,-200.0,0.00014136,2]
[423749838,1780383041000,-184.98,0.00013981,2]
[423749842,1780383041000,-250.0,0.00014,2]
[423749843,1780383041000,-2016.0,0.00014,2]
[423749840,1780383041000,-150.0,0.00013987,2]
[423749837,1780383041000,-481.99,0.00013981,2]
[423749846,1780383041000,-1594.0,0.0001404,2]
[423749856,1780383041000,-2000.0,0.0001413,2]
[423749858,1780383041000,-150.0,0.00014169,2]
[423749847,1780383041000,-5986.23714462,0.00014065,2]
[423749849,1780383041000,-2512.45974365,0.00014088,2]
[423749853,1780383041000,-150.0,0.00014123,2]
[423749852,1780383041000,-2000.0,0.0001411,2]
[423749854,1780383041000,-6201.52135705,0.00014129,2]
[423749848,1780383041000,-150.0,0.00014078,2]
[423749850,1780383041000,-166.66,0.0001411,2]
[423749855,1780383041000,-150.0,0.0001413,2]
[423749845,1780383041000,-1002.07,0.00014039,2]
[423749894,1780383046000,-152.0,0.00012027,7]
[423749895,1780383046000,-1047.92,0.00013658,2]
[423749897,1780383046000,-577.09443144,0.00013658,2]
[423749898,1780383046000,-3179.40334529,0.00013658,2]
[423749896,1780383046000,-424.71669306,0.00013658,2]
[423749947,1780383049000,-183.32,0.00014521,2]
[423749939,1780383049000,-150.0,0.00014396,2]
[423749940,1780383049000,-2512.45974365,0.00014413,2]
[423749936,1780383049000,-166.66,0.00014384,2]
[423749944,1780383049000,-500.0,0.00014482,2]
[423749938,1780383049000,-200.0,0.00014392,2]
[423749932,1780383049000,-2319.0,0.0001436,2]
[423749942,1780383049000,-150.0,0.00014441,2]
[423749943,1780383049000,-5986.23714462,0.00014482,2]
[423749945,1780383049000,-150.0,0.00014487,2]
[423749941,1780383049000,-6201.52135705,0.00014438,2]
[423749935,1780383049000,-1159.42775784,0.0001436,2]
[423749934,1780383049000,-164.0,0.0001436,2]
[423749931,1780383049000,-150.0,0.00014351,2]
[423749948,1780383049000,-151.0,0.00014528,2]
[423749937,1780383049000,-674.0,0.00014392,5]
[423749933,1780383049000,-1591.0,0.0001436,2]
[423749930,1780383049000,-150.0,0.00014344,2]
[423749946,1780383049000,-150.0,0.00014487,2]
[423749914,1780383049000,-426.69143299,0.00013658,2]
[423749915,1780383049000,-413.17409722,0.00013658,2]
[423749919,1780383049000,-2512.45974365,0.0001425,2]
[423749918,1780383049000,-1568.60582836,0.0001425,2]
[423749920,1780383049000,-150.0,0.0001426,2]
[423749917,1780383049000,-150.0,0.00014037,2]
[423749922,1780383049000,-151.0,0.00014274,2]
[423749916,1780383049000,-150.0,0.000139,2]
[423749921,1780383049000,-5986.23714462,0.00014273,2]
[423749924,1780383049000,-689.4,0.000143,2]
[423749925,1780383049000,-1370.11,0.000143,2]
[423749923,1780383049000,-6201.52135705,0.00014284,2]
[423749926,1780383049000,-648.11,0.000143,2]
[423749927,1780383049000,-150.0,0.00014305,2]
[423749929,1780383049000,-500.0,0.00014338,2]
[423749949,1780383049000,-150.0,0.00014532,2]
[423749928,1780383049000,-13259.99088645,0.00014308,2]
[423749954,1780383049000,-2512.45974365,0.00014575,2]
[423749973,1780383049000,-1621.0,0.0001468,2]
[423749976,1780383049000,-200.0,0.00014682,2]
[423749978,1780383049000,-5986.23714462,0.00014691,2]
[423749982,1780383049000,-150.0,0.00014714,2]
[423749980,1780383049000,-5000.0,0.00014691,2]
[423749994,1780383049000,-150.0,0.00014759,2]
[423749983,1780383049000,-3258.8844261,0.0001473,2]
[423749998,1780383049000,-150.0,0.00014772,2]
[423750000,1780383049000,-527.41233722,0.00014773,2]
[423750002,1780383049000,-151.0,0.00014779,2]
[423750004,1780383049000,-395.95,0.00014783,2]
[423749996,1780383049000,-500.0,0.00014771,2]
[423750010,1780383049000,-184.98,0.00014784,2]
[423750008,1780383049000,-669.57,0.00014784,2]
[423749950,1780383049000,-200.0,0.00014536,2]
[423749975,1780383049000,-2319.0,0.0001468,2]
[423750012,1780383049000,-184.98,0.00014784,2]
[423750006,1780383049000,-184.98,0.00014784,2]
[423749990,1780383049000,-151.0,0.00014741,2]
[423749992,1780383049000,-6201.52135705,0.00014746,2]
[423749952,1780383049000,-150.0,0.00014558,2]
[423749956,1780383049000,-150.0,0.00014578,2]
[423749962,1780383049000,-150.0,0.00014623,2]
[423749960,1780383049000,-150.0,0.00014612,2]
[423749958,1780383049000,-6201.52135705,0.00014592,2]
[423749968,1780383049000,-527.41233722,0.00014638,2]
[423749966,1780383049000,-527.41233722,0.00014634,2]
[423749969,1780383049000,-527.41233722,0.00014653,2]
[423749970,1780383049000,-150.0,0.00014668,2]
[423749971,1780383049000,-1606.0,0.0001468,2]
[423749972,1780383049000,-2319.0,0.0001468,2]
[423749974,1780383049000,-1591.0,0.0001468,2]
[423749985,1780383049000,-150.0,0.00014737,2]
[423749964,1780383049000,-500.0,0.00014627,2]
[423749988,1780383049000,-2512.45974365,0.00014738,2]
[423750095,1780383050000,-575.1,0.00014802,2]
[423750091,1780383050000,-572.84,0.00014802,2]
[423750093,1780383050000,-572.84,0.00014802,2]
[423750085,1780383050000,-482.02,0.000148,2]
[423750079,1780383050000,-1000.0,0.000148,2]
[423750083,1780383050000,-184.98,0.000148,2]
[423750089,1780383050000,-572.84,0.00014802,2]
[423750087,1780383050000,-184.84,0.000148,2]
[423750077,1780383050000,-10000.0,0.00014798,2]
[423750097,1780383050000,-184.98,0.00014803,2]
[423750075,1780383050000,-482.05,0.00014795,2]
[423750081,1780383050000,-481.99,0.000148,2]
[423750107,1780383050000,-572.88,0.00014803,2]
[423750118,1780383050000,-575.1,0.00014803,2]
[423750112,1780383050000,-572.84,0.00014803,2]
[423750103,1780383050000,-643.75,0.00014803,2]
[423750101,1780383050000,-575.1,0.00014803,2]
[423750100,1780383050000,-247.18,0.00014803,2]
[423750116,1780383050000,-184.98,0.00014803,2]
[423750114,1780383050000,-395.95,0.00014803,2]
[423750106,1780383050000,-643.75,0.00014803,2]
[423750121,1780383050000,-643.79,0.00014803,2]
[423750123,1780383050000,-572.88,0.00014803,2]
[423750133,1780383050000,-643.75,0.00014803,2]
[423750136,1780383050000,-643.75,0.00014803,2]
[423750138,1780383050000,-150.0,0.00014805,2]
[423750071,1780383050000,-572.84,0.00014795,2]
[423750110,1780383050000,-481.99,0.00014803,2]
[423750073,1780383050000,-395.95,0.00014795,2]
[423750030,1780383050000,-575.1,0.00014788,2]
[423750067,1780383050000,-572.84,0.00014795,2]
[423750014,1780383050000,-572.84,0.00014784,2]
[423750016,1780383050000,-184.98,0.00014784,2]
[423750020,1780383050000,-395.95,0.00014784,2]
[423750018,1780383050000,-184.98,0.00014784,2]
[423750034,1780383050000,-643.75,0.00014788,2]
[423750032,1780383050000,-395.95,0.00014788,2]
[423750022,1780383050000,-395.95,0.00014784,2]
[423750024,1780383050000,-395.95,0.00014788,2]
[423750036,1780383050000,-572.84,0.00014788,2]
[423750038,1780383050000,-643.75,0.0001479,2]
[423750039,1780383050000,-482.0,0.0001479,2]
[423750127,1780383050000,-395.95,0.00014803,2]
[423750028,1780383050000,-572.84,0.00014788,2]
[423750041,1780383050000,-395.97,0.00014791,2]
[423750026,1780383050000,-643.75,0.00014788,2]
[423750042,1780383050000,-643.75,0.00014791,2]
[423750044,1780383050000,-575.1,0.00014791,2]
[423750056,1780383050000,-481.99,0.00014794,2]
[423750046,1780383050000,-395.95,0.00014791,2]
[423750058,1780383050000,-481.99,0.00014794,2]
[423750062,1780383050000,-395.77,0.00014794,2]
[423750060,1780383050000,-643.75,0.00014794,2]
[423750050,1780383050000,-395.95,0.00014791,2]
[423750064,1780383050000,-481.99,0.00014795,2]
[423750048,1780383050000,-575.1,0.00014791,2]
[423750052,1780383050000,-500.0,0.00014793,2]
[423750054,1780383050000,-647.53,0.00014794,2]
[423750069,1780383050000,-575.13,0.00014795,2]
[423750124,1780383050000,-572.84,0.00014803,2]
[423750140,1780383050000,-481.99,0.00014805,2]
[423750223,1780383050000,-2000.0,0.00014985,2]
[423750200,1780383050000,-2512.45974365,0.000149,2]
[423750204,1780383050000,-727.1554039,0.00014932,2]
[423750215,1780383050000,-1237.82534285,0.0001497,2]
[423750214,1780383050000,-700.0,0.0001497,2]
[423750202,1780383050000,-500.0,0.00014915,2]
[423750218,1780383050000,-1546.42,0.00014985,2]
[423750216,1780383050000,-465.85,0.00014985,2]
[423750219,1780383050000,-426.79,0.00014985,2]
[423750235,1780383050000,-168.43147421,0.0001499,2]
[423750222,1780383050000,-778.91,0.00014985,2]
[423750233,1780383050000,-155.61598189,0.00014986,2]
[423750239,1780383050000,-168.43147421,0.0001499,2]
[423750237,1780383050000,-168.43147421,0.0001499,2]
[423750129,1780383050000,-482.02,0.00014803,2]
[423750225,1780383050000,-438.5,0.00014985,2]
[423750243,1780383050000,-250.0,0.00014999,2]
[423750231,1780383050000,-278.20099029,0.00014986,2]
[423750241,1780383050000,-500.0,0.00014998,2]
[423750227,1780383050000,-150.29404759,0.00014986,2]
[423750229,1780383050000,-155.98140772,0.00014986,2]
[423750245,1780383050000,-500.0,0.00014999,2]
[423750258,1780383050000,-500.0,0.00014999,2]
[423750256,1780383050000,-500.0,0.00014999,2]
[423750251,1780383050000,-500.0,0.00014999,2]
[423750250,1780383050000,-500.0,0.00014999,2]
[423750247,1780383050000,-500.0,0.00014999,2]
[423750254,1780383050000,-500.0,0.00014999,2]
[423750212,1780383050000,-283.7805155,0.0001496,2]
[423750210,1780383050000,-1168.4876401,0.0001496,2]
[423750206,1780383050000,-150.0,0.00014941,2]
[423750196,1780383050000,-5986.23714462,0.000149,2]
[423750142,1780383050000,-643.79,0.00014805,2]
[423750131,1780383050000,-481.99,0.00014803,2]
[423750144,1780383050000,-481.99,0.00014805,2]
[423750146,1780383050000,-395.95,0.00014805,2]
[423750148,1780383050000,-200.0,0.00014829,2]
[423750150,1780383050000,-1786.35217556,0.00014834,2]
[423750165,1780383050000,-10000.0,0.0001485,2]
[423750208,1780383050000,-164.0,0.00014959,2]
[423750163,1780383050000,-513.4,0.00014849,2]
[423750155,1780383050000,-500.0,0.00014849,2]
[423750167,1780383050000,-150.0,0.0001485,2]
[423750157,1780383050000,-500.0,0.00014849,2]
[423750159,1780383050000,-551.45,0.00014849,2]
[423750153,1780383050000,-505.063733,0.00014849,2]
[423750161,1780383050000,-500.0,0.00014849,2]
[423750171,1780383050000,-10000.0,0.00014899,2]
[423750169,1780383050000,-150.0,0.00014895,2]
[423750194,1780383050000,-1500.0,0.000149,2]
[423750190,1780383050000,-1618.27036211,0.000149,2]
[423750188,1780383050000,-23437.63252982,0.000149,3]
[423750186,1780383050000,-25000.0,0.000149,3]
[423750198,1780383050000,-1155.45218645,0.000149,2]
[423750192,1780383050000,-6201.52135705,0.000149,2]
[423750182,1780383050000,-21500.42901496,0.000149,3]
[423750180,1780383050000,-25000.0,0.000149,3]
[423750184,1780383050000,-25000.0,0.000149,3]
[423750174,1780383050000,-500.0,0.00014899,2]
[423750175,1780383050000,-500.0,0.00014899,2]
[423750177,1780383050000,-500.0,0.00014899,2]
[423750297,1780383051000,-551.45,0.00014999,2]
[423750307,1780383051000,-551.45,0.00014999,2]
[423750305,1780383051000,-551.45,0.00014999,2]
[423750310,1780383051000,-551.45,0.00014999,2]
[423750312,1780383051000,-551.45,0.00014999,2]
[423750299,1780383051000,-551.45,0.00014999,2]
[423750372,1780383051000,-500.0,0.00014999,2]
[423750370,1780383051000,-551.64222685,0.00014999,2]
[423750359,1780383051000,-551.45,0.00014999,2]
[423750368,1780383051000,-551.45,0.00014999,2]
[423750374,1780383051000,-426.41,0.00014999,2]
[423750376,1780383051000,-513.4,0.00014999,2]
[423750362,1780383051000,-551.45,0.00014999,2]
[423750295,1780383051000,-551.45,0.00014999,2]
[423750301,1780383051000,-551.45,0.00014999,2]
[423750303,1780383051000,-551.45,0.00014999,2]
[423750364,1780383051000,-551.45,0.00014999,2]
[423750276,1780383051000,-500.0,0.00014999,2]
[423750261,1780383051000,-500.0,0.00014999,2]
[423750260,1780383051000,-500.0,0.00014999,2]
[423750264,1780383051000,-500.0,0.00014999,2]
[423750265,1780383051000,-500.0,0.00014999,2]
[423750270,1780383051000,-500.0,0.00014999,2]
[423750268,1780383051000,-500.0,0.00014999,2]
[423750293,1780383051000,-551.45,0.00014999,2]
[423750272,1780383051000,-500.0,0.00014999,2]
[423750282,1780383051000,-426.24,0.00014999,2]
[423750284,1780383051000,-551.45,0.00014999,2]
[423750287,1780383051000,-551.45,0.00014999,2]
[423750273,1780383051000,-500.0,0.00014999,2]
[423750289,1780383051000,-551.45,0.00014999,2]
[423750278,1780383051000,-338.314605,0.00014999,2]
[423750280,1780383051000,-500.0,0.00014999,2]
[423750366,1780383051000,-551.45,0.00014999,2]
[423750291,1780383051000,-551.45,0.00014999,2]
[423750378,1780383051000,-513.4,0.00014999,2]
[423750428,1780383051000,-500.0,0.00014999,2]
[423750434,1780383051000,-217.98222391,0.00014999,2]
[423750441,1780383051000,-500.0,0.00014999,2]
[423750432,1780383051000,-500.0,0.00014999,2]
[423750438,1780383051000,-500.0,0.00014999,2]
[423750447,1780383051000,-500.0,0.00014999,2]
[423750425,1780383051000,-500.0,0.00014999,2]
[423750429,1780383051000,-500.0,0.00014999,2]
[423750436,1780383051000,-500.0,0.00014999,2]
[423750443,1780383051000,-500.0,0.00014999,2]
[423750452,1780383051000,-500.0,0.00014999,2]
[423750454,1780383051000,-500.0,0.00014999,2]
[423750459,1780383051000,-500.0,0.00014999,2]
[423750456,1780383051000,-500.0,0.00014999,2]
[423750445,1780383051000,-500.0,0.00014999,2]
[423750423,1780383051000,-500.0,0.00014999,2]
[423750450,1780383051000,-406.22353845,0.00014999,2]
[423750410,1780383051000,-513.4,0.00014999,2]
[423750418,1780383051000,-513.4,0.00014999,2]
[423750392,1780383051000,-513.4,0.00014999,2]
[423750395,1780383051000,-513.4,0.00014999,2]
[423750397,1780383051000,-513.4,0.00014999,2]
[423750380,1780383051000,-513.4,0.00014999,2]
[423750382,1780383051000,-513.4,0.00014999,2]
[423750386,1780383051000,-513.4,0.00014999,2]
[423750384,1780383051000,-513.4,0.00014999,2]
[423750390,1780383051000,-513.4,0.00014999,2]
[423750401,1780383051000,-513.4,0.00014999,2]
[423750413,1780383051000,-513.4,0.00014999,2]
[423750399,1780383051000,-513.4,0.00014999,2]
[423750403,1780383051000,-513.4,0.00014999,2]
[423750406,1780383051000,-513.4,0.00014999,2]
[423750415,1780383051000,-513.4,0.00014999,2]
[423750408,1780383051000,-513.4,0.00014999,2]
[423750420,1780383051000,-513.47045814,0.00014999,2]
[423750475,1780383052000,-505.66118299,0.00014999,2]
[423750471,1780383052000,-500.0,0.00014999,2]
[423750473,1780383052000,-500.0,0.00014999,2]
[423750469,1780383052000,-500.0,0.00014999,2]
[423750464,1780383052000,-500.0,0.00014999,2]
[423750481,1780383052000,-500.0,0.00014999,2]
[423750465,1780383052000,-500.0,0.00014999,2]
[423750463,1780383052000,-500.0,0.00014999,2]
[423750461,1780383052000,-500.0,0.00014999,2]
[423750467,1780383052000,-500.0,0.00014999,2]
[423750477,1780383052000,-500.0,0.00014999,2]
[423750485,1780383052000,-500.0,0.00014999,2]
[423750483,1780383052000,-500.0,0.00014999,2]
[423750494,1780383052000,-500.0,0.00014999,2]
[423750487,1780383052000,-500.0,0.00014999,2]
[423750496,1780383052000,-253.55554005,0.00014999,2]
[423750492,1780383052000,-500.0,0.00014999,2]
[423750498,1780383052000,-839.0,0.00015,5]
[423750503,1780383052000,-477649.29338031,0.00015,2]
[423750500,1780383052000,-54162.53864435,0.00015,2]
[423750515,1780383052000,-1268.030523,0.00015,2]
[423750479,1780383052000,-500.0,0.00014999,2]
[423750490,1780383052000,-500.0,0.00014999,2]
[423751333,1780383271000,-184.36238681,0.0001093,2]
[423751334,1780383325000,-981.94292825,0.00011028,2]
[423751335,1780383341000,-218.05707175,0.00011028,2]
[423751336,1780383373000,-300.0,0.00011028,2]
[423751337,1780383373000,-300.0,0.00011028,2]
[423751338,1780383395000,-870.358828,0.00010928,2]
[423751339,1780383412000,-870.358828,0.00010928,2]
[423751340,1780383443000,-2319.0,0.00010928,2]
[423751345,1780383444000,-302.86157896,0.00010927,2]
[423751344,1780383444000,-500.0,0.00010927,2]
[423751342,1780383444000,-500.0,0.00010927,2]
[423751341,1780383444000,-516.13842104,0.00010927,2]
[423751343,1780383444000,-500.0,0.00010927,2]
[423751346,1780383463000,-197.13842104,0.00010927,2]
[423751347,1780383482000,-500.0,0.00010927,2]
[423751348,1780383516000,-300.0,0.00010926,2]
[423751349,1780383571000,-300.0,0.00010926,2]
[423751350,1780383624000,-184.36238681,0.00010827,2]
[423751352,1780383677000,-711.0,0.00010926,2]
[423751360,1780383970000,-300.0,0.00010823,2]
[423751361,1780383986000,-1200.0,0.00010823,2]
[423751362,1780384022000,-300.0,0.00010823,2]
[423751363,1780384039000,-150.0,0.00010823,2]
[423751364,1780384076000,-279.27543213,0.00010823,2]
[423751365,1780384093000,-511.21897502,0.00010723,2]
[423751366,1780384110000,236.29034749,0.0001,2]
[423751367,1780384129000,-3620.299839,0.00010723,2]
[423751368,1780384145000,-535.75996825,0.00010723,2]
[423751373,1780384178000,-278.28957408,0.00010825,2]
[423751372,1780384178000,-500.0,0.00010823,2]
[423751371,1780384178000,-361.21897502,0.00010823,2]
[423751370,1780384178000,-150.0,0.00010823,2]
[423751369,1780384178000,-150.0,0.00010822,2]
[423751375,1780384179000,-78.28957408,0.00011097,2]
[423751376,1780384179000,481.1355,0.00021,120]
[423751374,1780384179000,-221.71042592,0.00010825,2]
[423751377,1780384201000,-566.8589708,0.00010722,2]
[423751436,1780384232000,-870.3589,0.00012626,2]
[423751444,1780384232000,-3930.39318323,0.00012858,2]
[423751421,1780384232000,-283.66769218,0.00011793,2]
[423751411,1780384232000,-62.23676855,0.00011739,2]
[423751419,1780384232000,-300.0,0.00011793,2]
[423751417,1780384232000,-48.52070137,0.00011785,2]
[423751405,1780384232000,-173.43,0.00011704,2]
[423751407,1780384232000,-321.09323145,0.00011739,2]
[423751416,1780384232000,-371.47929863,0.00011785,2]
[423751414,1780384232000,-166.66,0.00011775,2]
[423751396,1780384232000,-680.7,0.00011474,2]
[423751394,1780384232000,-150.0,0.00011448,2]
[423751398,1780384232000,-1344.17,0.0001162,2]
[423751393,1780384232000,-1000.0,0.00011352,2]
[423751388,1780384232000,-30.95638476,0.00011248,2]
[423751391,1780384232000,-17.25961976,0.00011329,2]
[423751390,1780384232000,-246.48038024,0.00011329,2]
[423751392,1780384232000,-500.0,0.00011331,2]
[423751402,1780384232000,-162.0,0.00011693,2]
[423751400,1780384232000,-186.54,0.00011687,2]
[423751387,1780384232000,-184.71903016,0.00011248,2]
[423751385,1780384232000,-300.0,0.00010721,2]
[423751386,1780384232000,-421.71042592,0.00011097,2]
[423751389,1780384232000,-160.0,0.00011248,2]
[423751428,1780384232000,-524.17,0.00011897,2]
[423751423,1780384232000,-2000.0,0.00011829,2]
[423751430,1780384232000,-186.54,0.00012303,2]
[423751434,1780384232000,-499.45424639,0.00012532,2]
[423751464,1780384232000,-500.0,0.00010721,2]
[423751463,1780384232000,-500.0,0.00010721,2]
[423751465,1780384232000,-754.29987532,0.00013473,2]
[423751461,1780384232000,-3640.0,0.00013473,2]
[423751462,1780384232000,-3286.88362902,0.00013473,2]
[423751453,1780384232000,-173.43,0.00013167,2]
[423751454,1780384232000,-4312.48957721,0.00013255,2]
[423751456,1780384232000,-2185.7866,0.00013438,2]
[423751457,1780384232000,-929.0,0.00013446,2]
[423751452,1780384232000,-433.0,0.00012997,2]
[423751455,1780384232000,-2000.0,0.00013308,2]
[423751449,1780384232000,-186.54,0.00012918,2]
[423751450,1780384232000,-587.0,0.00012954,2]
[423751432,1780384232000,-4312.48957726,0.00012432,2]
[423751426,1780384232000,-255.0,0.00011861,2]
[423751438,1780384232000,-4312.48957721,0.00012706,2]
[423751440,1780384232000,-1655.96,0.00012757,2]
[423751442,1780384232000,-1832.5,0.000128,2]
[423751459,1780384232000,-1273.0,0.00013456,2]
[423751460,1780384232000,-1226.0,0.00013456,2]
[423751447,1780384232000,-1385.14,0.00012888,2]
[423751451,1780384232000,-4312.48957721,0.0001298,2]
[423751458,1780384232000,-525.0,0.00013456,2]
[423751475,1780384238000,-411.28936573,0.00010721,2]
[423751470,1780384238000,-500.0,0.00010721,2]
[423751473,1780384238000,-500.0,0.00010721,2]
[423751472,1780384238000,-469.70988433,0.00010721,2]
[423751474,1780384238000,-88.71063427,0.00010721,2]
[423751467,1780384238000,-500.0,0.00010721,2]
[423751481,1780384238000,-202.01908114,0.00010721,2]
[423751469,1780384238000,-500.0,0.00010721,2]
[423751468,1780384238000,-500.0,0.00010721,2]
[423751466,1780384238000,-500.0,0.00010721,2]
[423751479,1780384238000,-500.0,0.00010721,2]
[423751471,1780384238000,-30.29011567,0.00010721,2]
[423751477,1780384238000,-40.93053773,0.00010721,2]
[423751485,1780384238000,-500.0,0.00010721,2]
[423751476,1780384238000,-459.06946227,0.00010721,2]
[423751493,1780384238000,-411.69498146,0.00010721,2]